[Event "Titled Tuesday Blitz November 22 Early 2022"]
[White "Kriti Mayur Patel"]
[Black "Mesa Cruz, Juan Carlos"]
[WhiteFideId "35061780"]
[BlackFideId "6423400"]
[WhiteElo "1306"]
[BlackElo "2059"]
[Result "0-1"]
[Round "05"]
[TimeControl "180+1"]
[Date "2022.11.23"]
[WhiteClock "0:00:12"]
[BlackClock "0:00:19"]

1. e4 {[%clk 0:03:00]}  c5 {[%clk 0:02:56]} 2. d4 {[%clk 0:02:59]}  cxd4 {[%clk 0:02:55]} 3. c3 {[%clk 0:02:59]}  d5 {[%clk 0:02:54]} 4. exd5 {[%clk 0:02:58]}  Nf6 {[%clk 0:02:53]} 5. cxd4 {[%clk 0:02:57]}  Nxd5 {[%clk 0:02:51]} 6. Nf3 {[%clk 0:02:56]}  e6 {[%clk 0:02:50]} 7. Bc4 {[%clk 0:02:56]}  Bb4+ {[%clk 0:02:49]} 8. Bd2 {[%clk 0:02:54]}  Bxd2+ {[%clk 0:02:49]} 9. Qxd2 {[%clk 0:02:55]}  O-O {[%clk 0:02:49]} 10. O-O {[%clk 0:02:55]}  Nc6 {[%clk 0:02:48]} 11. Nc3 {[%clk 0:02:55]}  Nce7 {[%clk 0:02:46]} 12. Bb3 {[%clk 0:02:54]}  b6 {[%clk 0:02:46]} 13. Qd3 {[%clk 0:02:52]}  Bb7 {[%clk 0:02:45]} 14. Ng5 {[%clk 0:02:47]}  g6 {[%clk 0:02:43]} 15. Qh3 {[%clk 0:02:47]}  h5 {[%clk 0:02:40]} 16. Bc2 {[%clk 0:02:44]}  Nf5 {[%clk 0:02:35]} 17. Nxd5 {[%clk 0:02:41]}  Qxg5 {[%clk 0:02:18]} 18. Ne3 {[%clk 0:02:35]}  Nxd4 {[%clk 0:02:16]} 19. Bd3 {[%clk 0:02:32]}  Rfd8 {[%clk 0:02:11]} 20. Rad1 {[%clk 0:02:29]}  Bf3 {[%clk 0:02:03]} 21. Rd2 {[%clk 0:02:23]}  Bg4 {[%clk 0:02:01]} 22. Qg3 {[%clk 0:02:12]}  Nf5 {[%clk 0:01:48]} 23. Nxf5 {[%clk 0:02:10]}  Qxd2 {[%clk 0:01:42]} 24. Ne7+ {[%clk 0:01:49]}  Kf8 {[%clk 0:01:41]} 25. Nxg6+ {[%clk 0:01:49]}  fxg6 {[%clk 0:01:40]} 26. Bxg6 {[%clk 0:01:49]}  Kg7 {[%clk 0:01:25]} 27. Bxh5 {[%clk 0:01:48]}  Qg5 {[%clk 0:01:07]} 28. Bxg4 {[%clk 0:01:45]}  Rd4 {[%clk 0:01:06]} 29. f4 {[%clk 0:01:42]}  Qg6 {[%clk 0:01:00]} 30. h4 {[%clk 0:01:25]}  Rd3 {[%clk 0:00:52]} 31. Rf3 {[%clk 0:01:14]}  Rxf3 {[%clk 0:00:52]} 32. gxf3 {[%clk 0:01:13]}  Rd8 {[%clk 0:00:45]} 33. Kh2 {[%clk 0:01:06]}  Qc2+ {[%clk 0:00:34]} 34. Kh3 {[%clk 0:01:04]}  Kf6 {[%clk 0:00:28]} 35. Bh5 {[%clk 0:00:52]}  Qf5+ {[%clk 0:00:25]} 36. Bg4 {[%clk 0:00:50]}  Qb1 {[%clk 0:00:25]} 37. Bh5 {[%clk 0:00:23]}  Qh1+ {[%clk 0:00:24]} 38. Qh2 {[%clk 0:00:16]}  Qxh2+ {[%clk 0:00:19]} 39. Kxh2 {[%clk 0:00:14]}  Rh8 {[%clk 0:00:17]} 40. Bg4 {[%clk 0:00:12]}  Rxh4+ {[%clk 0:00:17]} 41. Kg3 {[%clk 0:00:12]}  Rh1 {[%clk 0:00:17]} 42. Bh3 {[%clk 0:00:10]}  Rb1 {[%clk 0:00:16]} 43. b3 {[%clk 0:00:10]}  Rb2 {[%clk 0:00:17]} 44. Bf1 {[%clk 0:00:10]}  Rxa2 {[%clk 0:00:16]} 45. Bc4 {[%clk 0:00:11]}  a6 {[%clk 0:00:13]} 46. Kg4 {[%clk 0:00:12]}  b5 {[%clk 0:00:13]} 47. Bd3 {[%clk 0:00:12]}  Rb2 {[%clk 0:00:13]} 48. f5 {[%clk 0:00:12]}  Rxb3 {[%clk 0:00:13]} 49. Be4 {[%clk 0:00:11]}  exf5+ {[%clk 0:00:12]} 50. Bxf5 {[%clk 0:00:11]}  Rb4+ {[%clk 0:00:13]} 51. Be4 {[%clk 0:00:12]}  Rxe4+ {[%clk 0:00:13]} 52. fxe4 {[%clk 0:00:12]}  Ke5 {[%clk 0:00:14]} 53. Kf3 {[%clk 0:00:12]}  b4 {[%clk 0:00:14]} 54. Ke3 {[%clk 0:00:13]}  a5 {[%clk 0:00:15]} 55. Kd3 {[%clk 0:00:14]}  a4 {[%clk 0:00:15]} 56. Kc2 {[%clk 0:00:14]}  Kxe4 {[%clk 0:00:14]} 57. Kb2 {[%clk 0:00:15]}  Kd3 {[%clk 0:00:15]} 58. Ka2 {[%clk 0:00:15]}  Kc2 {[%clk 0:00:15]} 59. Ka1 {[%clk 0:00:15]}  Kc1 {[%clk 0:00:16]} 60. Ka2 {[%clk 0:00:15]}  b3+ {[%clk 0:00:17]} 61. Ka3 {[%clk 0:00:09]}  b2 {[%clk 0:00:17]} 62. Kxa4 {[%clk 0:00:07]}  b1=Q {[%clk 0:00:18]} 63. Ka5 {[%clk 0:00:07]}  Kc2 {[%clk 0:00:18]} 64. Ka6 {[%clk 0:00:08]}  Kc3 {[%clk 0:00:19]} 65. Ka7 {[%clk 0:00:09]}  Kc4 {[%clk 0:00:19]} 66. Ka8 {[%clk 0:00:10]}  Kc5 {[%clk 0:00:19]} 67. Ka7 {[%clk 0:00:11]}  Kc6 {[%clk 0:00:19]} 68. Ka6 {[%clk 0:00:12]}  Qb6# {[%clk 0:00:19]} 0-1


[Site "https://www.chess.com"]

[Event "Titled Tuesday Blitz November 22 Early 2022"]
[White "Krysa, Leandro"]
[Black "Ozates, Tuna"]
[WhiteFideId "116807"]
[BlackFideId "6354521"]
[WhiteElo "2485"]
[BlackElo "2151"]
[Result "1/2-1/2"]
[Round "05"]
[TimeControl "180+1"]
[Date "2022.11.23"]
[WhiteClock "0:00:05"]
[BlackClock "0:00:06"]

1. d4 {[%clk 0:02:55]}  d5 {[%clk 0:02:58]} 2. c4 {[%clk 0:02:55]}  c6 {[%clk 0:02:57]} 3. cxd5 {[%clk 0:02:54]}  cxd5 {[%clk 0:02:56]} 4. Bg5 {[%clk 0:02:54]}  Qb6 {[%clk 0:02:52]} 5. Nc3 {[%clk 0:02:53]}  e6 {[%clk 0:02:49]} 6. Qd2 {[%clk 0:02:47]}  Nc6 {[%clk 0:02:49]} 7. e3 {[%clk 0:02:47]}  Bd7 {[%clk 0:02:49]} 8. Bd3 {[%clk 0:02:45]}  Bd6 {[%clk 0:02:48]} 9. Nge2 {[%clk 0:02:36]}  a6 {[%clk 0:02:48]} 10. O-O {[%clk 0:02:35]}  Nge7 {[%clk 0:02:47]} 11. Bh4 {[%clk 0:02:29]}  O-O {[%clk 0:02:46]} 12. Rfc1 {[%clk 0:02:26]}  Rac8 {[%clk 0:02:43]} 13. Bg3 {[%clk 0:02:19]}  Bxg3 {[%clk 0:02:39]} 14. hxg3 {[%clk 0:02:20]}  Na5 {[%clk 0:02:39]} 15. b3 {[%clk 0:02:14]}  Rc7 {[%clk 0:02:36]} 16. Rc2 {[%clk 0:02:13]}  Rfc8 {[%clk 0:02:34]} 17. Rac1 {[%clk 0:02:13]}  h6 {[%clk 0:02:27]} 18. Kf1 {[%clk 0:02:06]}  Bb5 {[%clk 0:01:57]} 19. Bxb5 {[%clk 0:01:44]}  axb5 {[%clk 0:01:57]} 20. Nf4 {[%clk 0:01:36]}  Nf5 {[%clk 0:01:26]} 21. Nd3 {[%clk 0:01:26]}  Nd6 {[%clk 0:01:21]} 22. Ne2 {[%clk 0:01:15]}  Ne4 {[%clk 0:01:16]} 23. Qd1 {[%clk 0:01:16]}  Qd6 {[%clk 0:00:53]} 24. Rxc7 {[%clk 0:00:59]}  Rxc7 {[%clk 0:00:53]} 25. Rxc7 {[%clk 0:01:00]}  Qxc7 {[%clk 0:00:54]} 26. Qc1 {[%clk 0:01:00]}  Qxc1+ {[%clk 0:00:35]} 27. Nexc1 {[%clk 0:01:01]}  Kf8 {[%clk 0:00:28]} 28. g4 {[%clk 0:01:00]}  f6 {[%clk 0:00:28]} 29. f3 {[%clk 0:00:59]}  Nd6 {[%clk 0:00:27]} 30. Nb4 {[%clk 0:00:56]}  Nc6 {[%clk 0:00:25]} 31. Ncd3 {[%clk 0:00:53]}  Ke7 {[%clk 0:00:24]} 32. Ke2 {[%clk 0:00:52]}  Kd7 {[%clk 0:00:22]} 33. Nc5+ {[%clk 0:00:47]}  Ke7 {[%clk 0:00:23]} 34. Nxc6+ {[%clk 0:00:46]}  bxc6 {[%clk 0:00:23]} 35. a4 {[%clk 0:00:47]}  bxa4 {[%clk 0:00:20]} 36. bxa4 {[%clk 0:00:48]}  Nc4 {[%clk 0:00:20]} 37. Kd3 {[%clk 0:00:41]}  Kd6 {[%clk 0:00:20]} 38. e4 {[%clk 0:00:32]}  e5 {[%clk 0:00:19]} 39. Kc3 {[%clk 0:00:31]}  exd4+ {[%clk 0:00:17]} 40. Kxd4 {[%clk 0:00:31]}  Na5 {[%clk 0:00:13]} 41. exd5 {[%clk 0:00:22]}  cxd5 {[%clk 0:00:13]} 42. Nd3 {[%clk 0:00:21]}  Nc6+ {[%clk 0:00:14]} 43. Kc3 {[%clk 0:00:21]}  g6 {[%clk 0:00:12]} 44. Nb4 {[%clk 0:00:16]}  Na5 {[%clk 0:00:12]} 45. Kd4 {[%clk 0:00:16]}  Nb3+ {[%clk 0:00:10]} 46. Kc3 {[%clk 0:00:16]}  Na5 {[%clk 0:00:09]} 47. Nd3 {[%clk 0:00:16]}  h5 {[%clk 0:00:09]} 48. gxh5 {[%clk 0:00:16]}  gxh5 {[%clk 0:00:10]} 49. Nf4 {[%clk 0:00:15]}  h4 {[%clk 0:00:09]} 50. Ng6 {[%clk 0:00:15]}  Kc5 {[%clk 0:00:10]} 51. Nxh4 {[%clk 0:00:14]}  d4+ {[%clk 0:00:10]} 52. Kd3 {[%clk 0:00:13]}  Nc6 {[%clk 0:00:11]} 53. Nf5 {[%clk 0:00:12]}  Nb4+ {[%clk 0:00:12]} 54. Ke4 {[%clk 0:00:12]}  d3 {[%clk 0:00:11]} 55. Ne3 {[%clk 0:00:08]}  d2 {[%clk 0:00:10]} 56. g4 {[%clk 0:00:07]}  Nc2 {[%clk 0:00:07]} 57. Nd1 {[%clk 0:00:06]}  Kc4 {[%clk 0:00:06]} 58. f4 {[%clk 0:00:05]}  Nb4 {[%clk 0:00:02]} 59. g5 {[%clk 0:00:05]}  fxg5 {[%clk 0:00:02]} 60. fxg5 {[%clk 0:00:06]}  Nd5 {[%clk 0:00:02]} 61. g6 {[%clk 0:00:04]}  Nc3+ {[%clk 0:00:02]} 62. Nxc3 {[%clk 0:00:03]}  Kxc3 {[%clk 0:00:03]} 63. g7 {[%clk 0:00:03]}  d1=Q {[%clk 0:00:04]} 64. g8=Q {[%clk 0:00:04]}  Qd4+ {[%clk 0:00:05]} 65. Kf5 {[%clk 0:00:02]}  Qxa4 {[%clk 0:00:06]} 66. Qe6 {[%clk 0:00:02]}  Qd4 {[%clk 0:00:06]} 67. Kg6 {[%clk 0:00:02]}  Qd3+ {[%clk 0:00:06]} 68. Kf7 {[%clk 0:00:03]}  Qf3+ {[%clk 0:00:06]} 69. Qf6+ {[%clk 0:00:04]}  Qxf6+ {[%clk 0:00:06]} 70. Kxf6 {[%clk 0:00:05]} 1/2-1/2


[Site "https://www.chess.com"]

[Event "Titled Tuesday Blitz November 22 Early 2022"]
[White "Kuznetsov, Mikhail"]
[Black "Averjanov, Alexey"]
[WhiteFideId "4117190"]
[BlackFideId "14109867"]
[WhiteElo "1981"]
[BlackElo "2610"]
[Result "1/2-1/2"]
[Round "05"]
[TimeControl "180+1"]
[Date "2022.11.23"]
[WhiteClock "0:00:38"]
[BlackClock "0:02:00"]

1. Nf3 {[%clk 0:03:00]}  c5 {[%clk 0:02:59]} 2. g3 {[%clk 0:03:00]}  Nc6 {[%clk 0:02:59]} 3. d4 {[%clk 0:03:00]}  cxd4 {[%clk 0:02:59]} 4. Nxd4 {[%clk 0:03:01]}  g6 {[%clk 0:02:59]} 5. Bg2 {[%clk 0:03:00]}  Bg7 {[%clk 0:03:00]} 6. Nb3 {[%clk 0:03:01]}  d6 {[%clk 0:02:59]} 7. O-O {[%clk 0:03:00]}  Nf6 {[%clk 0:02:59]} 8. c3 {[%clk 0:03:00]}  h5 {[%clk 0:03:00]} 9. h4 {[%clk 0:02:59]}  Bg4 {[%clk 0:03:00]} 10. N1d2 {[%clk 0:02:57]}  Qd7 {[%clk 0:03:00]} 11. Nf3 {[%clk 0:02:56]}  Bh3 {[%clk 0:02:59]} 12. Ng5 {[%clk 0:02:55]}  Bxg2 {[%clk 0:02:59]} 13. Kxg2 {[%clk 0:02:56]}  O-O {[%clk 0:02:59]} 14. Be3 {[%clk 0:02:52]}  a5 {[%clk 0:02:58]} 15. Nd4 {[%clk 0:02:51]}  a4 {[%clk 0:02:56]} 16. a3 {[%clk 0:02:14]}  Ng4 {[%clk 0:02:55]} 17. Qd2 {[%clk 0:02:04]}  Nxe3+ {[%clk 0:02:54]} 18. Qxe3 {[%clk 0:02:03]}  Nxd4 {[%clk 0:02:54]} 19. cxd4 {[%clk 0:02:03]}  Rfc8 {[%clk 0:02:53]} 20. Rac1 {[%clk 0:01:59]}  Bh6 {[%clk 0:02:38]} 21. Qe4 {[%clk 0:01:20]}  Bxg5 {[%clk 0:02:34]} 22. hxg5 {[%clk 0:01:21]}  Kf8 {[%clk 0:02:27]} 23. e3 {[%clk 0:01:09]}  Rxc1 {[%clk 0:02:26]} 24. Rxc1 {[%clk 0:01:10]}  Rc8 {[%clk 0:02:26]} 25. Rxc8+ {[%clk 0:01:07]}  Qxc8 {[%clk 0:02:27]} 26. Qd3 {[%clk 0:01:06]}  Qc6+ {[%clk 0:02:24]} 27. Kh2 {[%clk 0:00:42]}  d5 {[%clk 0:02:20]} 28. Kg2 {[%clk 0:00:39]}  e6 {[%clk 0:02:13]} 29. Qd2 {[%clk 0:00:38]}  Qc4 {[%clk 0:02:09]} 30. Qa5 {[%clk 0:00:37]}  Qb3 {[%clk 0:02:02]} 31. Qd8+ {[%clk 0:00:37]}  Kg7 {[%clk 0:02:01]} 32. Qf6+ {[%clk 0:00:38]}  Kg8 {[%clk 0:02:01]} 33. Qd8+ {[%clk 0:00:38]}  Kg7 {[%clk 0:02:00]} 34. Qf6+ {[%clk 0:00:37]}  Kf8 {[%clk 0:02:00]} 35. Qd8+ {[%clk 0:00:38]}  Kg7 {[%clk 0:02:00]} 1/2-1/2


[Site "https://www.chess.com"]

[Event "Titled Tuesday Blitz November 22 Early 2022"]
[White "Lamaze, Simon"]
[Black "Pham, Khoi"]
[WhiteFideId "36069264"]
[BlackFideId "1054988"]
[WhiteElo "2272"]
[BlackElo "2457"]
[Result "0-1"]
[Round "05"]
[TimeControl "180+1"]
[Date "2022.11.23"]
[WhiteClock "0:00:57"]
[BlackClock "0:00:14"]

1. e4 {[%clk 0:02:53]}  e6 {[%clk 0:02:59]} 2. d4 {[%clk 0:02:51]}  d5 {[%clk 0:03:00]} 3. Nc3 {[%clk 0:02:52]}  Bb4 {[%clk 0:02:59]} 4. e5 {[%clk 0:02:52]}  c5 {[%clk 0:02:59]} 5. a3 {[%clk 0:02:52]}  Bxc3+ {[%clk 0:02:59]} 6. bxc3 {[%clk 0:02:52]}  Ne7 {[%clk 0:02:59]} 7. Qg4 {[%clk 0:02:51]}  Qc7 {[%clk 0:02:59]} 8. Qxg7 {[%clk 0:02:50]}  Rg8 {[%clk 0:02:58]} 9. Qxh7 {[%clk 0:02:51]}  cxd4 {[%clk 0:02:53]} 10. Ne2 {[%clk 0:02:51]}  dxc3 {[%clk 0:02:47]} 11. f4 {[%clk 0:02:51]}  Nbc6 {[%clk 0:02:36]} 12. h4 {[%clk 0:02:50]}  Bd7 {[%clk 0:02:34]} 13. Qd3 {[%clk 0:02:47]}  O-O-O {[%clk 0:02:29]} 14. a4 {[%clk 0:02:42]}  Nb4 {[%clk 0:02:25]} 15. Qd1 {[%clk 0:02:42]}  d4 {[%clk 0:02:24]} 16. Ba3 {[%clk 0:02:39]}  Ned5 {[%clk 0:02:17]} 17. Rh3 {[%clk 0:02:18]}  a5 {[%clk 0:01:22]} 18. Qc1 {[%clk 0:02:10]}  Ne3 {[%clk 0:01:15]} 19. Rxe3 {[%clk 0:02:04]}  dxe3 {[%clk 0:01:14]} 20. Bxb4 {[%clk 0:02:05]}  axb4 {[%clk 0:01:14]} 21. Qxe3 {[%clk 0:02:05]}  Bc6 {[%clk 0:01:10]} 22. g3 {[%clk 0:01:54]}  Rd2 {[%clk 0:01:08]} 23. a5 {[%clk 0:01:50]}  Bb5 {[%clk 0:01:06]} 24. Nxc3 {[%clk 0:01:33]}  Bxf1 {[%clk 0:00:51]} 25. Qxd2 {[%clk 0:01:27]}  bxc3 {[%clk 0:00:50]} 26. Qe3 {[%clk 0:01:25]}  Ba6 {[%clk 0:00:47]} 27. Ra3 {[%clk 0:01:23]}  Kb8 {[%clk 0:00:45]} 28. Kf2 {[%clk 0:01:22]}  Qc4 {[%clk 0:00:41]} 29. Ra1 {[%clk 0:01:15]}  Rd8 {[%clk 0:00:37]} 30. g4 {[%clk 0:01:07]}  Rd2+ {[%clk 0:00:35]} 31. Kg3 {[%clk 0:01:08]}  Qd5 {[%clk 0:00:32]} 32. Qf3 {[%clk 0:01:05]}  Qxf3+ {[%clk 0:00:17]} 33. Kxf3 {[%clk 0:01:04]}  Rxc2 {[%clk 0:00:18]} 34. h5 {[%clk 0:01:05]}  Rh2 {[%clk 0:00:18]} 35. Kg3 {[%clk 0:01:05]}  Rd2 {[%clk 0:00:15]} 36. h6 {[%clk 0:01:04]}  c2 {[%clk 0:00:16]} 37. h7 {[%clk 0:01:04]}  Rd8 {[%clk 0:00:15]} 38. f5 {[%clk 0:01:03]}  exf5 {[%clk 0:00:15]} 39. gxf5 {[%clk 0:01:04]}  Bd3 {[%clk 0:00:15]} 40. Kf4 {[%clk 0:01:02]}  Rh8 {[%clk 0:00:15]} 41. Rh1 {[%clk 0:00:57]}  Rxh7 {[%clk 0:00:14]} 42. Rxh7 {[%clk 0:00:58]}  c1=Q+ {[%clk 0:00:14]} 43. Kg4 {[%clk 0:00:57]}  Qg1+ {[%clk 0:00:14]} 44. Kh4 {[%clk 0:00:57]} 0-1


[Site "https://www.chess.com"]

[Event "Titled Tuesday Blitz November 22 Early 2022"]
[White "Larina, Maria"]
[Black "Yuan, Qingyu"]
[WhiteFideId "24113182"]
[BlackFideId "8609772"]
[WhiteElo "1848"]
[BlackElo "2359"]
[Result "0-1"]
[Round "05"]
[TimeControl "180+1"]
[Date "2022.11.23"]
[WhiteClock "0:00:17"]
[BlackClock "0:00:16"]

1. e4 {[%clk 0:03:00]}  e5 {[%clk 0:02:48]} 2. Nf3 {[%clk 0:02:57]}  Nc6 {[%clk 0:02:47]} 3. Nc3 {[%clk 0:02:57]}  Nf6 {[%clk 0:02:47]} 4. Bb5 {[%clk 0:02:57]}  Nd4 {[%clk 0:02:47]} 5. Bc4 {[%clk 0:02:58]}  Nxf3+ {[%clk 0:02:42]} 6. gxf3 {[%clk 0:02:57]}  d6 {[%clk 0:02:40]} 7. Rg1 {[%clk 0:02:46]}  g6 {[%clk 0:02:39]} 8. f4 {[%clk 0:02:44]}  exf4 {[%clk 0:02:33]} 9. d4 {[%clk 0:02:43]}  Bh6 {[%clk 0:02:32]} 10. Qf3 {[%clk 0:02:38]}  Nh5 {[%clk 0:01:58]} 11. Nd5 {[%clk 0:02:29]}  Be6 {[%clk 0:01:56]} 12. Bb3 {[%clk 0:02:12]}  Bxd5 {[%clk 0:01:52]} 13. Bxd5 {[%clk 0:02:08]}  c6 {[%clk 0:01:50]} 14. Bb3 {[%clk 0:02:08]}  Qf6 {[%clk 0:01:42]} 15. c3 {[%clk 0:02:07]}  O-O-O {[%clk 0:01:39]} 16. Bd2 {[%clk 0:02:06]}  Rhe8 {[%clk 0:01:38]} 17. O-O-O {[%clk 0:02:05]}  Kb8 {[%clk 0:01:38]} 18. Rg4 {[%clk 0:01:57]}  Re7 {[%clk 0:01:34]} 19. Re1 {[%clk 0:01:56]}  Rde8 {[%clk 0:01:34]} 20. Bc2 {[%clk 0:01:56]}  a6 {[%clk 0:01:30]} 21. Kb1 {[%clk 0:01:43]}  Ka8 {[%clk 0:01:30]} 22. Bc1 {[%clk 0:01:43]}  Qe6 {[%clk 0:01:22]} 23. Rgg1 {[%clk 0:01:29]}  Qd7 {[%clk 0:01:17]} 24. Bd2 {[%clk 0:01:18]}  f6 {[%clk 0:01:13]} 25. Bc1 {[%clk 0:00:56]}  f5 {[%clk 0:01:12]} 26. Bd2 {[%clk 0:00:53]}  fxe4 {[%clk 0:01:07]} 27. Rxe4 {[%clk 0:00:52]}  Rxe4 {[%clk 0:00:59]} 28. Bxe4 {[%clk 0:00:53]}  d5 {[%clk 0:00:57]} 29. Bd3 {[%clk 0:00:52]}  Re6 {[%clk 0:00:48]} 30. Bf5 {[%clk 0:00:47]}  gxf5 {[%clk 0:00:35]} 31. Rg8+ {[%clk 0:00:45]}  Re8 {[%clk 0:00:33]} 32. Qxh5 {[%clk 0:00:40]}  Rxg8 {[%clk 0:00:31]} 33. Qxh6 {[%clk 0:00:41]}  Qe7 {[%clk 0:00:27]} 34. Qxf4 {[%clk 0:00:38]}  Qe4+ {[%clk 0:00:25]} 35. Qxe4 {[%clk 0:00:38]}  fxe4 {[%clk 0:00:25]} 36. Bf4 {[%clk 0:00:38]}  Rg1+ {[%clk 0:00:22]} 37. Kc2 {[%clk 0:00:38]}  b6 {[%clk 0:00:17]} 38. Kd2 {[%clk 0:00:37]}  Kb7 {[%clk 0:00:18]} 39. Bg3 {[%clk 0:00:34]}  Rb1 {[%clk 0:00:18]} 40. Kc2 {[%clk 0:00:34]}  Re1 {[%clk 0:00:18]} 41. Kd2 {[%clk 0:00:34]}  Rb1 {[%clk 0:00:18]} 42. Kc2 {[%clk 0:00:34]}  Rg1 {[%clk 0:00:18]} 43. Kd2 {[%clk 0:00:34]}  Kc8 {[%clk 0:00:18]} 44. Kc2 {[%clk 0:00:32]}  Kd7 {[%clk 0:00:19]} 45. b3 {[%clk 0:00:31]}  Ke6 {[%clk 0:00:18]} 46. c4 {[%clk 0:00:31]}  Kf5 {[%clk 0:00:18]} 47. a4 {[%clk 0:00:29]}  Kg4 {[%clk 0:00:16]} 48. cxd5 {[%clk 0:00:29]}  cxd5 {[%clk 0:00:16]} 49. Kd2 {[%clk 0:00:28]}  Kf3 {[%clk 0:00:16]} 50. b4 {[%clk 0:00:27]}  b5 {[%clk 0:00:15]} 51. axb5 {[%clk 0:00:26]}  axb5 {[%clk 0:00:16]} 52. Kc2 {[%clk 0:00:19]}  Ra1 {[%clk 0:00:17]} 53. Kb2 {[%clk 0:00:19]}  Re1 {[%clk 0:00:16]} 54. Kc2 {[%clk 0:00:19]}  Re2+ {[%clk 0:00:16]} 55. Kc3 {[%clk 0:00:18]}  Rxf2 {[%clk 0:00:16]} 56. Bxf2 {[%clk 0:00:17]}  Kxf2 {[%clk 0:00:16]} 0-1


[Site "https://www.chess.com"]

[Event "Titled Tuesday Blitz November 22 Early 2022"]
[White "Levitan, Caleb Levi"]
[Black "Skliarov, Viktor"]
[WhiteFideId "14332620"]
[BlackFideId "14106736"]
[WhiteElo "1963"]
[BlackElo "2284"]
[Result "0-1"]
[Round "05"]
[TimeControl "180+1"]
[Date "2022.11.23"]
[WhiteClock "0:00:02"]
[BlackClock "0:00:10"]

1. e4 {[%clk 0:02:58]}  c5 {[%clk 0:02:59]} 2. Nf3 {[%clk 0:02:56]}  Nc6 {[%clk 0:02:59]} 3. Nc3 {[%clk 0:02:55]}  Nf6 {[%clk 0:02:57]} 4. Bb5 {[%clk 0:02:54]}  Nd4 {[%clk 0:02:57]} 5. e5 {[%clk 0:02:53]}  Nxb5 {[%clk 0:02:57]} 6. Nxb5 {[%clk 0:02:53]}  Nd5 {[%clk 0:02:57]} 7. Ng5 {[%clk 0:02:53]}  f6 {[%clk 0:02:55]} 8. exf6 {[%clk 0:02:20]}  Nxf6 {[%clk 0:02:55]} 9. O-O {[%clk 0:02:18]}  a6 {[%clk 0:02:42]} 10. Nc3 {[%clk 0:02:14]}  e6 {[%clk 0:02:42]} 11. Nce4 {[%clk 0:02:08]}  d5 {[%clk 0:02:27]} 12. Nxf6+ {[%clk 0:02:06]}  Qxf6 {[%clk 0:02:26]} 13. d3 {[%clk 0:02:03]}  Bd7 {[%clk 0:02:15]} 14. Qf3 {[%clk 0:01:09]}  Bd6 {[%clk 0:01:56]} 15. Qxf6 {[%clk 0:01:04]}  gxf6 {[%clk 0:01:56]} 16. Nf3 {[%clk 0:01:04]}  e5 {[%clk 0:01:50]} 17. Bh6 {[%clk 0:00:55]}  Rg8 {[%clk 0:01:48]} 18. Kh1 {[%clk 0:00:35]}  Kf7 {[%clk 0:01:42]} 19. Rfe1 {[%clk 0:00:34]}  Rg6 {[%clk 0:01:31]} 20. Bd2 {[%clk 0:00:32]}  Rag8 {[%clk 0:01:31]} 21. g3 {[%clk 0:00:30]}  Bc6 {[%clk 0:01:24]} 22. Kg1 {[%clk 0:00:30]}  Rg4 {[%clk 0:00:48]} 23. h3 {[%clk 0:00:26]}  R4g7 {[%clk 0:00:45]} 24. c3 {[%clk 0:00:10]}  c4 {[%clk 0:00:23]} 25. dxc4 {[%clk 0:00:08]}  dxc4 {[%clk 0:00:22]} 26. Nh4 {[%clk 0:00:09]}  Ke6 {[%clk 0:00:20]} 27. Rad1 {[%clk 0:00:09]}  Bc5 {[%clk 0:00:17]} 28. Be3 {[%clk 0:00:02]}  b6 {[%clk 0:00:14]} 29. Bxc5 {[%clk 0:00:02]}  bxc5 {[%clk 0:00:15]} 30. Rd2 {[%clk 0:00:02]}  Rd7 {[%clk 0:00:09]} 31. Red1 {[%clk 0:00:02]}  Rxd2 {[%clk 0:00:09]} 32. Rxd2 {[%clk 0:00:03]}  Be4 {[%clk 0:00:10]} 33. Ng2 {[%clk 0:00:02]}  Bd3 {[%clk 0:00:08]} 34. Ne1 {[%clk 0:00:02]}  Be4 {[%clk 0:00:08]} 35. f3 {[%clk 0:00:01]}  Bg6 {[%clk 0:00:05]} 36. Kf2 {[%clk 0:00:01]}  Rb8 {[%clk 0:00:05]} 37. h4 {[%clk 0:00:02]}  f5 {[%clk 0:00:06]} 38. f4 {[%clk 0:00:02]}  exf4 {[%clk 0:00:05]} 39. gxf4 {[%clk 0:00:03]}  Be8 {[%clk 0:00:05]} 40. Ng2 {[%clk 0:00:03]}  Bc6 {[%clk 0:00:05]} 41. Ne3 {[%clk 0:00:04]}  Be4 {[%clk 0:00:06]} 42. Nxc4 {[%clk 0:00:04]}  Rg8 {[%clk 0:00:06]} 43. Ne5 {[%clk 0:00:04]}  Rg2+ {[%clk 0:00:06]} 44. Ke3 {[%clk 0:00:04]}  Rg3+ {[%clk 0:00:06]} 45. Kf2 {[%clk 0:00:04]}  Rh3 {[%clk 0:00:07]} 46. Rd7 {[%clk 0:00:02]}  Rxh4 {[%clk 0:00:07]} 47. Ra7 {[%clk 0:00:02]}  Rxf4+ {[%clk 0:00:07]} 48. Ke3 {[%clk 0:00:02]}  Kxe5 {[%clk 0:00:08]} 49. Re7+ {[%clk 0:00:02]}  Kd6 {[%clk 0:00:08]} 50. Rxh7 {[%clk 0:00:03]}  Rf3+ {[%clk 0:00:09]} 51. Ke2 {[%clk 0:00:03]}  a5 {[%clk 0:00:09]} 52. Rh6+ {[%clk 0:00:03]}  Ke5 {[%clk 0:00:09]} 53. Ra6 {[%clk 0:00:03]}  Rh3 {[%clk 0:00:09]} 54. Rxa5 {[%clk 0:00:04]}  Rh2+ {[%clk 0:00:10]} 55. Kd1 {[%clk 0:00:04]}  Rxb2 {[%clk 0:00:10]} 56. Rxc5+ {[%clk 0:00:04]}  Kf4 {[%clk 0:00:10]} 57. a3 {[%clk 0:00:03]}  Ke3 {[%clk 0:00:10]} 58. Kc1 {[%clk 0:00:02]}  Rb1# {[%clk 0:00:10]} 0-1


[Site "https://www.chess.com"]

[Event "Titled Tuesday Blitz November 22 Early 2022"]
[White "Ljukin, Sergei"]
[Black "Sailer, Mike"]
[WhiteFideId "14102200"]
[BlackFideId "2012901"]
[WhiteElo "2312"]
[BlackElo "2109"]
[Result "1-0"]
[Round "05"]
[TimeControl "180+1"]
[Date "2022.11.23"]
[WhiteClock "0:00:38"]
[BlackClock "0:00:09"]

1. e4 {[%clk 0:02:54]}  d5 {[%clk 0:02:59]} 2. exd5 {[%clk 0:02:53]}  Qxd5 {[%clk 0:02:59]} 3. Nc3 {[%clk 0:02:53]}  Qd6 {[%clk 0:03:00]} 4. d4 {[%clk 0:02:54]}  Nf6 {[%clk 0:03:01]} 5. Nf3 {[%clk 0:02:53]}  c6 {[%clk 0:03:01]} 6. g3 {[%clk 0:02:51]}  Bf5 {[%clk 0:03:02]} 7. Bf4 {[%clk 0:02:41]}  Qb4 {[%clk 0:02:58]} 8. Qd2 {[%clk 0:02:41]}  e6 {[%clk 0:02:58]} 9. O-O-O {[%clk 0:02:36]}  Nbd7 {[%clk 0:02:54]} 10. Kb1 {[%clk 0:02:31]}  h6 {[%clk 0:02:52]} 11. h4 {[%clk 0:02:24]}  O-O-O {[%clk 0:02:51]} 12. Bd3 {[%clk 0:01:52]}  Bxd3 {[%clk 0:02:50]} 13. Qxd3 {[%clk 0:01:51]}  Qa5 {[%clk 0:02:13]} 14. a3 {[%clk 0:01:37]}  Nc5 {[%clk 0:01:53]} 15. Qe2 {[%clk 0:01:22]}  Na4 {[%clk 0:01:39]} 16. Nxa4 {[%clk 0:01:21]}  Qxa4 {[%clk 0:01:39]} 17. Ne5 {[%clk 0:01:21]}  Nd5 {[%clk 0:01:32]} 18. Nxf7 {[%clk 0:01:13]}  Bxa3 {[%clk 0:01:28]} 19. c4 {[%clk 0:00:57]}  Nxf4 {[%clk 0:00:43]} 20. gxf4 {[%clk 0:00:55]}  Bb4 {[%clk 0:00:28]} 21. Nxh8 {[%clk 0:00:52]}  Rxh8 {[%clk 0:00:28]} 22. Qxe6+ {[%clk 0:00:51]}  Kb8 {[%clk 0:00:28]} 23. Qe5+ {[%clk 0:00:46]}  Ka8 {[%clk 0:00:28]} 24. d5 {[%clk 0:00:46]}  cxd5 {[%clk 0:00:21]} 25. Rxd5 {[%clk 0:00:45]}  a6 {[%clk 0:00:20]} 26. Rhd1 {[%clk 0:00:40]}  Qb3 {[%clk 0:00:10]} 27. Rd8+ {[%clk 0:00:38]}  Rxd8 {[%clk 0:00:10]} 28. Rxd8+ {[%clk 0:00:38]}  Ka7 {[%clk 0:00:11]} 29. Qe3+ {[%clk 0:00:38]}  Qxe3 {[%clk 0:00:09]} 30. fxe3 {[%clk 0:00:38]} 1-0


[Site "https://www.chess.com"]